bitfinex-derivatives/quotes_SOLF0:USTF0_20241211
["timestamp","ask_amount","ask_price","bid_price","bid_amount"]
[1733875201768,2.8709,213.85,213.61,1.4588]
[1733875203968,7.98780333,213.84,213.61,1.4588]
[1733875204166,1.3728,213.85,213.61,1.4588]
[1733875204372,12.32241236,213.84,213.61,1.4588]
[1733875204573,1.3728,213.85,213.61,1.4588]
[1733875204870,12.31610952,213.84,213.61,1.4588]
[1733875205067,1.3728,213.85,213.61,1.4588]
[1733875205265,1.3728,213.85,213.61,12.53211743]
[1733875205463,1.3728,213.85,213.62,6.50725829]
[1733875205666,1.3728,213.85,213.62,14.04]
[1733875206066,1.3728,213.85,213.62,20.54725829]
[1733875206263,1.3728,213.85,213.62,6.50725829]
[1733875206463,12.31292313,213.84,213.61,7.96605829]
[1733875206668,12.31292313,213.83,213.61,7.96605829]
[1733875206864,12.31292313,213.82,213.61,7.96605829]
[1733875207066,1.3728,213.85,213.61,1.4588]
[1733875207271,20.29907005,213.84,213.61,1.4588]
[1733875207466,20.29907005,213.83,213.61,1.4588]
[1733875207670,20.29907005,213.82,213.61,1.4588]
[1733875207870,20.30123073,213.81,213.61,1.4588]
[1733875208070,12.31288532,213.8,213.61,1.4588]
[1733875208271,1.3728,213.85,213.61,1.4588]
[1733875208473,12.31754021,213.84,213.61,1.4588]
[1733875208669,12.31754021,213.83,213.61,1.4588]
[1733875208866,1.3728,213.85,213.61,1.4588]
[1733875209066,28.6497696,213.84,213.61,1.4588]
[1733875209270,20.30350662,213.83,213.61,1.4588]
[1733875209465,20.30350662,213.82,213.61,1.4588]
[1733875209673,12.31539464,213.81,213.61,1.4588]
[1733875209874,12.31539464,213.8,213.61,1.4588]
[1733875210069,12.31539464,213.79,213.61,1.4588]
[1733875210269,12.31539464,213.78,213.61,1.4588]
[1733875210471,12.31539464,213.77,213.61,1.4588]
[1733875210672,7.98811198,213.76,213.61,1.4588]
[1733875210877,13.67289464,213.77,213.61,1.4588]
[1733875211078,20.3003452,213.76,213.66,7.40017132]
[1733875211272,7.40017132,213.75,213.66,7.40017132]
[1733875211569,7.40017132,213.75,213.61,1.4588]
[1733875211570,7.40017132,213.75,213.68,7.40017132]
[1733875213479,8.75767132,213.77,213.7,7.40017132]
[1733875214376,1.4526,213.87,213.76,7.40017132]
[1733875214573,7.40017132,213.85,213.76,7.40017132]
[1733875214778,7.40017132,213.8,213.73,7.40017132]
[1733875214978,7.40017132,213.78,213.71,7.40017132]
[1733875215282,7.40017132,213.76,213.69,7.40017132]
[1733875215671,7.40017132,213.74,213.67,7.40017132]
[1733875216180,7.40017132,213.74,213.68,2.38]
[1733875216376,2.38,213.82,213.69,7.40017132]
[1733875216377,7.40017132,213.76,213.69,7.40017132]
[1733875217978,7.40017132,213.76,213.68,2.38]
[1733875218179,7.40017132,213.74,213.68,2.38]
[1733875219580,7.40017132,213.7,213.62,2.9065]
[1733875219881,7.40017132,213.68,213.63,2.38]
[1733875220079,2.38,213.76,213.66,7.40017132]
[1733875220280,7.40017132,213.73,213.66,7.40017132]
[1733875220781,1.4463,213.75,213.68,7.40017132]
[1733875220982,8.84647132,213.75,213.69,2.38]
[1733875223983,1.4463,213.75,213.7,7.40017132]
[1733875225582,1.4463,213.75,213.69,2.38]
[1733875226289,1.4463,213.75,213.7,7.40017132]
[1733875227584,1.4463,213.75,213.71,2.36]
[1733875228083,7.40017132,213.73,213.69,2.36]
[1733875229988,8.84647132,213.75,213.69,2.36]
[1733875230688,2.3377,213.74,213.7,2.3381]
[1733875231286,7.40017132,213.73,213.67,2.3384]
[1733875231483,7.40017132,213.73,213.67,4.6984]
[1733875231785,2.3378,213.74,213.68,7.40017132]
[1733875232288,2.3378,213.74,213.7,2.3381]
[1733875233087,1.4958,213.76,213.7,7.40017132]
[1733875235289,7.40017132,213.78,213.7,7.40017132]
[1733875235989,7.40017132,213.78,213.75,2.3375]
[1733875236590,7.40017132,213.78,213.76,2.3374]
[1733875236889,3.8009,213.81,213.76,2.3374]
[1733875236890,7.40017132,213.8,213.76,2.3374]
[1733875237290,7.40017132,213.8,213.77,2.3374]
[1733875237590,7.40017132,213.82,213.76,7.40017132]
[1733875237995,9.73707132,213.82,213.74,9.76017132]
[1733875238185,1.3693,213.86,213.76,7.40017132]
[1733875238186,1.4176,213.85,213.76,7.40017132]
[1733875238389,7.40017132,213.83,213.76,7.40017132]
[1733875239087,7.40017132,213.81,213.74,2.36]
[1733875239293,7.40017132,213.81,213.74,9.76017132]
[1733875239692,7.40017132,213.81,213.78,2.3373]
[1733875239889,7.40017132,213.83,213.76,7.40017132]
[1733875240291,7.40017132,213.83,213.79,2.3371]
[1733875240795,7.40017132,213.83,213.79,4.6971]
[1733875240996,7.40017132,213.83,213.8,2.3371]
[1733875241188,2.3365,213.85,213.8,2.3371]
[1733875241492,7.40017132,213.83,213.8,2.3371]
[1733875241900,7.40017132,213.83,213.79,2.36]
[1733875241901,9.73687132,213.83,213.79,2.36]
[1733875244194,1.3693,213.86,213.79,2.36]
[1733875244398,7.40017132,213.85,213.79,9.76017132]
[1733875244998,7.40017132,213.85,213.83,2.3367]
[1733875245194,7.40017132,213.85,213.79,7.40017132]
[1733875245395,7.40017132,213.83,213.8,2.36]
[1733875245997,7.40017132,213.85,213.8,2.36]
[1733875246798,7.40017132,213.85,213.81,2.3369]
[1733875247600,7.40017132,213.85,213.82,2.3368]
[1733875247900,193.67684156,214.0,213.94,2.3355]
[1733875248097,193.67684156,214.02,213.84,7.40017132]
[1733875248098,7.40017132,214.02,213.93,7.40017132]
[1733875248401,7.40017132,214.02,213.94,2.36]
[1733875248797,9.73487132,214.02,213.95,2.3353]
[1733875249001,1.4072,214.03,213.94,2.36]
[1733875249203,7.40017132,214.02,213.94,2.36]
[1733875249500,7.40017132,213.96,213.92,2.36]
[1733875250296,7.40017132,213.94,213.85,7.40017132]
[1733875250501,7.40017132,213.9,213.89,2.36]
[1733875250803,7.40017132,213.9,213.87,2.36]
[1733875251298,7.40017132,213.92,213.87,2.36]
[1733875251696,1.5059,213.97,213.87,2.36]
[1733875251697,7.40017132,213.9,213.87,2.36]
[1733875252500,7.40017132,213.9,213.81,2.8909]
[1733875252706,7.40017132,213.9,213.82,9.78017132]
[1733875253401,7.40017132,213.9,213.83,2.3367]
[1733875255106,7.40017132,213.88,213.82,12.11697132]
[1733875255301,9.73617132,213.9,213.82,12.11697132]
[1733875255605,9.73617132,213.9,213.82,9.78017132]
[1733875256604,9.73617132,213.9,213.83,2.3367]
[1733875279026,2.336,213.91,213.89,5.66739596]
[1733875279627,2.336,213.9,213.89,5.66739596]
[1733875279823,2.8772,213.97,213.83,11.53355152]
[1733875280030,11.53355152,213.95,213.84,2.38]
[1733875280231,11.53355152,213.95,213.84,4.7166]
[1733875280429,11.53355152,213.95,213.84,2.38]
[1733875280631,2.3358,213.92,213.84,2.38]
[1733875280822,11.53355152,213.95,213.86,5.64660766]
[1733875281529,2.3361,213.89,213.86,5.64660766]
[1733875282030,2.3358,213.92,213.86,5.64660766]
[1733875282432,2.8772,213.97,213.86,17.18015918]
[1733875282628,2.8772,213.97,213.88,2.3362]
[1733875283331,2.3358,213.92,213.88,2.3362]
[1733875283630,2.3358,213.92,213.87,2.3363]
[1733875284429,2.3358,213.92,213.88,2.38]
[1733875284628,2.8772,213.97,213.88,2.38]
[1733875284931,11.53355152,213.95,213.88,2.38]
[1733875285130,2.3361,213.89,213.88,2.38]
[1733875286031,2.3358,213.92,213.88,2.38]
[1733875286823,2.3359,213.91,213.88,2.38]
[1733875287223,2.8772,213.97,213.88,2.38]
[1733875287526,12.30606904,213.96,213.88,2.38]
[1733875287826,12.30907799,213.95,213.88,2.38]
[1733875288034,2.8772,213.97,213.88,2.38]
[1733875288233,12.3093896,213.96,213.88,2.38]
[1733875288430,12.3093896,213.95,213.88,2.38]
[1733875288625,2.8772,213.97,213.88,2.38]
[1733875288923,12.31559146,213.96,213.88,2.38]
[1733875289130,2.8772,213.97,213.88,2.38]
[1733875289325,12.31996144,213.96,213.88,2.38]
[1733875289634,12.32002892,213.95,213.88,2.38]
[1733875289930,2.8772,213.97,213.88,2.38]
[1733875290131,2.3356,213.94,213.88,2.38]
[1733875290428,2.8772,213.97,213.88,2.38]
[1733875290633,12.32008348,213.96,213.88,2.38]
[1733875291033,12.32008348,213.95,213.88,2.38]
[1733875291337,2.3361,213.9,213.88,2.38]
[1733875292734,2.8772,213.97,213.88,2.38]
[1733875293035,2.336,213.9,213.88,2.38]
[1733875293227,7.38517909,213.93,213.88,2.38]
[1733875293731,2.3359,213.91,213.88,2.38]
[1733875294432,2.336,213.9,213.88,2.38]
[1733875294827,7.38517909,213.95,213.88,9.76517909]
[1733875295034,2.336,213.91,213.88,9.76517909]
[1733875296936,2.336,213.91,213.88,2.38]
[1733875297728,2.3357,213.93,213.89,2.3361]
[1733875297929,7.38517909,213.95,213.88,9.76517909]
[1733875299732,2.336,213.9,213.88,9.76517909]
[1733875300628,2.336,213.9,213.88,2.38]
[1733875301237,2.3359,213.92,213.88,9.76517909]
[1733875301637,7.38517909,213.95,213.88,9.76517909]
[1733875302035,10.26237909,213.97,213.88,12.10127909]
[1733875302235,12.32297721,213.96,213.9,7.38517909]
[1733875302438,2.8772,213.97,213.9,7.38517909]
[1733875302733,10.26237909,213.97,213.9,7.38517909]
[1733875303140,2.3355,213.94,213.9,9.72117909]
[1733875303642,2.3357,213.93,213.9,7.38517909]
[1733875304132,10.26237909,213.97,213.9,7.38517909]
[1733875304332,7.38517909,213.95,213.88,12.10137909]
[1733875304639,7.38517909,213.95,213.88,9.76517909]
[1733875304839,2.336,213.9,213.88,9.76517909]
[1733875306034,7.38517909,213.95,213.88,7.38517909]
[1733875306237,7.38517909,213.93,213.86,2.38]
[1733875306437,7.38517909,213.93,213.77,4.4108]
[1733875306638,2.3366,213.84,213.8,2.337]
[1733875306838,2.3366,213.84,213.8,9.72217909]
[1733875307137,7.38517909,213.88,213.82,7.38517909]
[1733875307437,7.38517909,213.9,213.83,2.38]
[1733875307940,2.3361,213.89,213.85,2.3365]
[1733875310339,2.3363,213.87,213.83,4.7167]
[1733875310537,2.3363,213.87,213.83,12.10187909]
[1733875310739,7.38517909,213.9,213.83,9.76517909]
[1733875311432,2.3362,213.88,213.84,2.3365]
[1733875312937,2.3362,213.88,213.85,2.3365]
[1733875313139,2.336,213.9,213.83,9.76517909]
[1733875314239,2.336,213.9,213.85,2.3365]
[1733875315140,2.336,213.9,213.85,7.90927826]
[1733875315441,2.3364,213.86,213.83,2.38]
[1733875315941,7.38517909,213.89,213.83,7.95360007]
[1733875316142,2.3365,213.85,213.83,7.95360007]
[1733875317144,2.3364,213.87,213.83,7.95360007]
[1733875317741,2.3364,213.86,213.83,7.95360007]
[1733875318236,2.3366,213.84,213.79,2.3371]
[1733875318435,7.38517909,213.83,213.8,5.56686731]
[1733875318645,7.38517909,213.83,213.79,2.36]
[1733875318844,2.3371,213.8,213.79,2.36]
[1733875319041,7.38517909,213.81,213.75,7.38517909]
[1733875319042,7.38517909,213.81,213.75,2.36]
[1733875319246,7.38517909,213.79,213.72,1.4626]
[1733875319447,7.38517909,213.79,213.74,2.36]
[1733875319642,2.3376,213.76,213.73,2.36]
[1733875320447,9.72257909,213.77,213.73,2.36]
[1733875320847,2.36,213.85,213.73,7.94522871]
[1733875320848,2.3372,213.79,213.73,7.94522871]
[1733875321142,7.38517909,213.8,213.73,5.58522871]
[1733875321343,2.36,213.85,213.69,2.36]
[1733875321548,7.38517909,213.77,213.7,7.38517909]
[1733875321844,2.36,213.85,213.75,2.3376]
[1733875321845,7.38517909,213.8,213.75,2.3376]
[1733875322044,7.38517909,213.8,213.76,2.36]
[1733875322745,7.38517909,213.84,213.76,9.74517909]
[1733875322940,6.8087,213.89,213.78,7.38517909]
[1733875323145,7.38517909,213.86,213.78,7.38517909]
[1733875324741,7.38517909,213.86,213.8,7.38517909]
[1733875325551,7.38517909,213.86,213.81,2.36]
[1733875326850,7.38517909,213.84,213.81,2.36]
[1733875327753,7.38517909,213.82,213.77,2.36]
[1733875328051,7.38517909,213.8,213.77,2.36]
[1733875328747,7.38517909,213.78,213.73,2.36]
[1733875329051,7.38517909,213.74,213.71,8.07881171]
[1733875330653,9.72297909,213.74,213.71,8.07881171]
[1733875330856,9.72297909,213.74,213.71,5.71881171]
[1733875331053,9.72297909,213.74,213.71,8.07881171]
[1733875331353,2.3378,213.74,213.71,8.07881171]
[1733875332249,2.3378,213.74,213.61,4.3329]
[1733875332250,11.55901488,213.74,213.63,2.36]
[1733875332850,2.3383,213.69,213.64,2.3387]
[1733875333048,11.55901488,213.74,213.63,2.36]
[1733875333455,2.3384,213.68,213.63,4.6989]
[1733875333853,11.55901488,213.74,213.65,5.48935353]
[1733875333854,2.3383,213.7,213.65,5.48935353]
[1733875334057,199.81314156,213.88,213.65,5.48935353]
[1733875334253,11.55901488,213.78,213.65,5.48935353]
[1733875334458,2.3378,213.74,213.67,2.3384]
[1733875334654,13.91901488,213.78,213.68,2.36]
[1733875335059,2.3375,213.77,213.68,2.36]
[1733875335358,11.55901488,213.81,213.69,13.03741488]
[1733875335559,2.3369,213.82,213.77,2.3373]
[1733875337556,2.3367,213.84,213.79,2.3372]
[1733875337860,13.05941488,213.87,213.76,2.36]
[1733875338661,2.3368,213.83,213.77,2.3373]
[1733875338864,13.05941488,213.87,213.76,2.36]
[1733875339062,11.55901488,213.81,213.72,2.36]
[1733875339362,2.3374,213.77,213.72,2.36]
[1733875339858,11.55901488,213.81,213.72,2.36]
[1733875339859,2.3375,213.76,213.72,2.36]
[1733875340162,11.55901488,213.81,213.72,2.36]
[1733875341168,2.3375,213.76,213.72,2.36]
[1733875341367,11.55901488,213.78,213.72,2.36]
[1733875341763,2.3375,213.77,213.72,2.36]
[1733875342067,11.55901488,213.81,213.72,2.36]
[1733875344272,2.3372,213.79,213.72,2.36]
[1733875344465,11.55901488,213.81,213.72,4.6979]
[1733875344664,11.55901488,213.81,213.72,2.36]
[1733875345171,2.36,213.83,213.72,2.36]
[1733875345368,13.05941488,213.87,213.72,13.91901488]
[1733875346071,13.05941488,213.87,213.75,11.55901488]
[1733875346664,2.3365,213.85,213.79,2.3371]
[1733875346870,2.3365,213.85,213.79,4.7171]
[1733875347472,2.3366,213.85,213.79,2.38]
[1733875347771,13.05941488,213.87,213.79,2.38]
[1733875347965,2.3367,213.84,213.79,2.38]
[1733875348271,2.3367,213.84,213.79,4.7172]
[1733875349572,2.3365,213.86,213.81,2.3369]
[1733875349773,1.4427,213.89,213.79,2.38]
[1733875350267,2.3361,213.9,213.81,11.55901488]
[1733875350467,12.96341488,213.93,213.81,11.55901488]
[1733875350666,2.3358,213.92,213.84,2.3366]
[1733875350864,12.96341488,213.93,213.85,2.38]
[1733875351668,2.3359,213.91,213.85,2.38]
[1733875351873,11.55901488,213.96,213.85,2.38]
[1733875352268,11.55901488,213.96,213.86,2.3363]
[1733875352873,2.3359,213.91,213.86,2.3363]
[1733875353069,11.55901488,213.96,213.85,2.38]
[1733875353470,2.3361,213.9,213.85,2.38]
[1733875353666,2.3361,213.9,213.85,4.7165]
[1733875354074,11.55901488,213.96,213.84,5.68555451]
[1733875354273,11.55901488,213.93,213.84,5.68555451]
[1733875354472,11.55901488,213.93,213.82,2.38]
[1733875354473,11.55901488,213.9,213.82,2.38]
[1733875355675,11.55901488,213.87,213.82,2.38]
[1733875355979,2.3365,213.86,213.82,2.38]
[1733875356178,11.55901488,213.87,213.82,2.38]
[1733875356876,2.3366,213.85,213.82,2.38]
[1733875357778,2.3363,213.87,213.82,2.38]
[1733875358370,2.3364,213.86,213.82,4.7168]
[1733875360079,13.93901488,213.93,213.82,2.38]
[1733875360474,2.38,213.95,213.82,2.38]
[1733875360680,2.336,213.9,213.85,2.3365]
[1733875360875,13.93901488,213.96,213.85,2.3365]
[1733875361181,11.55901488,213.9,213.82,2.38]
[1733875361371,11.55901488,213.93,213.82,2.38]
[1733875361776,2.3362,213.89,213.84,2.3366]
[1733875363573,2.336,213.9,213.82,2.38]
[1733875363776,11.55901488,213.93,213.83,2.3366]
[1733875363978,11.55901488,213.9,213.82,2.38]
[1733875364876,11.55901488,213.9,213.8,5.52357708]
[1733875365081,11.55901488,213.9,213.8,7.90357708]
[1733875366177,11.55901488,213.87,213.8,2.38]
[1733875366777,11.55901488,213.87,213.77,5.57692725]
[1733875366778,2.3371,213.8,213.77,5.57692725]
[1733875366974,11.55901488,213.84,213.69,11.55901488]
[1733875367281,2.3376,213.75,213.7,4.7181]
[1733875367579,11.55901488,213.81,213.72,5.70317824]
[1733875367986,2.3375,213.76,213.72,5.70317824]
[1733875368380,2.3372,213.79,213.73,2.3378]
[1733875368684,2.3372,213.79,213.72,5.70317824]
[1733875369086,2.3372,213.79,213.73,2.3378]
[1733875371491,2.9206,213.83,213.73,2.3378]
[1733875371990,2.337,213.81,213.72,5.70317824]
[1733875372587,11.55901488,213.87,213.76,11.55901488]
[1733875372787,11.55901488,213.87,213.77,2.38]
[1733875373288,2.3366,213.85,213.8,2.3371]
[1733875373791,2.3364,213.86,213.81,2.337]
[1733875373992,2.3364,213.86,213.77,2.38]
[1733875374189,11.55901488,213.9,213.78,1.4015]
[1733875374484,11.55901488,213.9,213.79,11.55901488]
[1733875375084,2.3361,213.89,213.84,2.3366]
[1733875375284,2.3361,213.89,213.84,4.6966]
[1733875375487,2.3364,213.87,213.84,2.36]
[1733875375684,11.55901488,213.9,213.84,2.36]
[1733875375891,11.55901488,213.9,213.8,2.36]
[1733875376790,11.55901488,213.9,213.8,4.6971]
[1733875376983,11.55901488,213.9,213.8,2.3371]
[1733875377184,11.55901488,213.9,213.81,2.36]
[1733875378295,2.3366,213.84,213.81,2.36]
[1733875378994,11.55901488,213.87,213.73,11.55901488]
[1733875379191,11.55901488,213.87,213.74,2.36]
[1733875379690,2.3367,213.84,213.76,2.3375]
[1733875379995,11.55901488,213.84,213.74,2.36]
[1733875380189,11.55901488,213.81,213.74,2.36]
[1733875380594,11.55901488,213.81,213.73,2.36]
[1733875380795,11.55901488,213.81,213.71,2.36]
[1733875381292,11.55901488,213.81,213.71,4.698]
[1733875381293,2.3376,213.75,213.71,4.698]
[1733875381494,11.55901488,213.78,213.7,2.36]
[1733875382698,2.3377,213.75,213.7,4.6981]
[1733875383102,2.3377,213.75,213.7,10.40173937]
[1733875385101,2.3377,213.74,213.7,8.06363937]
[1733875385301,11.55901488,213.78,213.7,2.36]
[1733875385599,1.4265,213.81,213.68,2.36]
[1733875385600,11.55901488,213.75,213.68,2.36]
[1733875385798,1.4265,213.81,213.68,2.36]
[1733875386097,2.3373,213.78,213.73,2.3378]
[1733875386297,11.55901488,213.8,213.73,2.36]
[1733875386503,1.4628,213.82,213.73,2.36]
[1733875386997,11.55901488,213.86,213.73,13.91901488]
[1733875387302,2.3368,213.83,213.78,2.3372]
[1733875387499,2.3368,213.83,213.79,2.36]
[1733875388393,2.3369,213.82,213.79,2.36]
[1733875388794,11.55901488,213.86,213.79,2.36]
[1733875388998,11.55901488,213.86,213.77,2.36]
[1733875391206,11.55901488,213.83,213.74,1.4767]
[1733875391499,2.337,213.81,213.75,2.36]
[1733875391704,11.55901488,213.83,213.75,2.36]
[1733875392305,11.55901488,213.86,213.75,2.36]
[1733875392504,11.55901488,213.87,213.75,2.36]
[1733875392807,2.3366,213.85,213.79,2.3371]
[1733875393002,11.55901488,213.87,213.79,2.36]
[1733875394202,11.55901488,213.84,213.79,2.36]
[1733875394711,2.3369,213.82,213.79,2.36]
[1733875395413,13.89571488,213.84,213.79,2.36]
[1733875395611,2.3367,213.84,213.79,2.36]
[1733875396512,2.3367,213.84,213.79,4.6971]
[1733875396812,2.3365,213.85,213.79,2.36]
[1733875397007,11.55901488,213.87,213.79,4.6972]
[1733875398106,1.4059,213.89,213.79,2.36]
[1733875398909,1.3892,213.91,213.79,13.91901488]
[1733875399109,12.97391488,213.94,213.79,13.91901488]
[1733875399315,12.27903821,213.93,213.79,13.91901488]
[1733875399513,11.55901488,213.97,213.82,11.55901488]
[1733875399813,11.55901488,213.97,213.85,11.55901488]
[1733875400013,2.3354,213.96,213.91,2.3359]
[1733875400209,2.3354,213.96,213.91,4.6959]
[1733875400415,11.55901488,214.0,213.91,2.36]
[1733875401514,2.3352,213.97,213.92,2.3357]
[1733875402016,2.3351,213.98,213.92,2.3357]
[1733875402419,2.8521,214.05,213.91,13.91901488]
[1733875402420,11.55901488,214.03,213.91,13.91901488]
[1733875402615,2.8521,214.05,213.92,1.4774]
[1733875402814,2.8521,214.05,213.92,4.3168]
[1733875403014,2.8521,214.05,213.97,2.3351]
[1733875403313,2.3346,214.04,213.98,2.36]
[1733875404216,5.1864,214.05,213.99,2.335]
[1733875405211,2.8521,214.05,213.98,2.36]
[1733875406113,2.3346,214.03,213.98,2.36]
[1733875406613,2.3343,214.05,213.99,2.335]
[1733875407416,11.55901488,214.09,213.99,2.335]
[1733875407717,11.55901488,214.09,213.98,2.36]
[1733875408709,2.3344,214.05,213.99,2.335]
[1733875409309,11.55901488,214.09,213.98,2.36]
[1733875409912,2.3341,214.08,214.01,2.3348]
[1733875410110,11.55901488,214.09,213.98,2.36]
[1733875410515,11.55901488,214.12,213.98,2.36]
[1733875411015,2.334,214.09,214.01,2.3347]
[1733875411314,2.8907,214.15,214.01,1.4437]
[1733875411514,2.3336,214.12,214.06,13.89311488]
[1733875411815,2.3336,214.12,214.07,2.36]
[1733875413917,11.55901488,214.19,214.07,2.36]
[1733875415013,2.3335,214.14,214.09,2.3339]
[1733875415822,2.3335,214.13,214.08,2.334]
[1733875416020,2.3335,214.13,214.07,2.36]
[1733875416021,11.55901488,214.19,214.07,2.36]
[1733875416723,11.55901488,214.16,214.08,2.36]
[1733875417320,2.3338,214.1,214.08,2.36]
[1733875417623,18.10441488,214.18,214.08,2.36]
[1733875419620,18.10441488,214.18,214.03,11.55901488]
[1733875419816,11.55901488,214.15,214.04,2.36]
[1733875420027,11.55901488,214.15,214.05,2.36]
[1733875420220,11.55901488,214.12,214.05,2.36]
[1733875420924,11.55901488,214.12,214.03,2.36]
[1733875421124,11.55901488,214.09,213.97,13.89421488]
[1733875421320,2.3346,214.03,213.99,2.36]
[1733875422818,2.3346,214.03,213.99,7.91273085]
[1733875423420,2.3347,214.02,213.99,2.36]
[1733875423823,2.8236,214.08,213.99,2.36]
[1733875424023,4.2566,214.08,213.99,2.36]
[1733875424425,2.3349,214.01,213.99,2.36]
[1733875424626,2.3349,214.01,213.98,2.36]
[1733875427129,4.2566,214.08,213.98,2.36]
[1733875429032,2.8236,214.08,213.98,2.36]
[1733875429632,2.3343,214.05,214.0,2.3348]
[1733875429833,2.8236,214.08,214.0,11.55901488]
[1733875430429,2.3342,214.06,214.0,11.55901488]
[1733875430628,11.55901488,214.12,214.0,11.55901488]
[1733875430827,2.9808,214.13,214.0,11.55901488]
[1733875431025,2.9808,214.13,214.03,11.55901488]
[1733875431328,2.9808,214.13,214.04,2.36]
[1733875431535,2.3337,214.11,214.06,2.3342]
[1733875431725,2.9808,214.13,214.04,2.36]
[1733875432130,2.3337,214.12,214.07,2.3341]
[1733875432728,11.55901488,214.18,214.08,2.334]
[1733875432933,11.55901488,214.18,214.09,2.36]
[1733875433535,2.3334,214.14,214.09,4.6938]
[1733875435742,2.3332,214.16,214.1,2.3338]
[1733875436043,2.3332,214.16,214.09,2.36]
[1733875436739,17.2174869,214.21,214.12,2.3335]
[1733875436940,4.4045,214.23,214.09,13.91901488]
[1733875437135,4.4045,214.23,214.12,11.55901488]
[1733875437944,2.9515,214.23,214.12,11.55901488]
[1733875438143,11.82573488,214.27,214.15,11.55901488]
[1733875438442,13.28903488,214.27,214.16,2.36]
[1733875438741,13.28903488,214.27,214.17,2.333]
[1733875439745,13.28903488,214.27,214.16,2.36]
[1733875439941,1.73002,214.27,214.2,2.3327]
[1733875440146,1.73002,214.27,214.21,2.36]
[1733875440842,2.3321,214.26,214.21,4.6926]
[1733875441047,0.26672,214.27,214.21,2.36]
[1733875441449,0.26672,214.27,214.23,2.3324]
[1733875441748,0.26672,214.27,214.21,2.36]
[1733875441950,0.26672,214.27,214.23,2.3324]
[1733875442543,0.26672,214.27,214.22,2.3325]
[1733875443243,0.26672,214.27,214.21,2.36]
[1733875443550,0.26672,214.27,214.18,17.18508414]
[1733875443753,0.26672,214.27,214.08,2.8187]
[1733875443754,0.26672,214.27,214.19,2.36]
[1733875444052,0.26672,214.27,214.15,11.55901488]
[1733875444053,3.00782,214.27,214.2,2.36]
[1733875444254,3.00782,214.27,214.21,2.36]
[1733875444750,0.26672,214.27,214.21,2.36]
[1733875445249,2.59872,214.27,214.21,2.36]
[1733875445445,0.26672,214.27,214.21,2.36]
[1733875445852,2.3322,214.25,214.21,2.36]
[1733875446349,0.26672,214.27,214.21,2.36]
[1733875446547,0.26672,214.27,214.17,7.90168579]
[1733875446848,11.55901488,214.25,214.17,2.36]
[1733875447053,2.3329,214.18,214.17,2.36]
[1733875447247,11.55901488,214.25,214.17,2.36]
[1733875448348,2.3331,214.16,214.11,2.3337]
[1733875448546,2.3331,214.16,214.12,2.36]
[1733875448751,2.9,214.21,214.12,2.36]
[1733875449055,2.333,214.17,214.12,4.6936]
[1733875452053,2.3327,214.2,214.15,2.3332]
[1733875452258,2.3327,214.2,214.12,13.91901488]
[1733875452259,11.55901488,214.25,214.12,13.91901488]
[1733875452455,6.6716,214.26,214.12,13.91901488]
[1733875453358,11.55901488,214.25,214.12,13.91901488]
[1733875454060,6.6716,214.26,214.12,13.91901488]
[1733875454252,4.3116,214.26,214.12,13.91901488]
[1733875454452,2.9144,214.26,214.15,11.55901488]
[1733875454955,0.26672,214.27,214.18,11.55901488]
[1733875455153,0.26672,214.27,214.19,2.36]
[1733875455757,2.3321,214.26,214.21,2.3325]
[1733875456060,11.55901488,214.31,214.19,2.36]
[1733875456562,11.55901488,214.31,214.21,2.3326]
[1733875456764,11.55901488,214.31,214.19,2.36]
[1733875457165,2.332,214.27,214.22,2.3324]
[1733875457759,11.55901488,214.31,214.23,2.3323]
[1733875457760,2.3319,214.28,214.23,2.3323]
[1733875458063,2.8489,214.32,214.24,2.36]